Workbook

Sheet Pasiūlymas
A1: Perkančioji organizacija, kuriai teikiamas pasiūlymas: | C1: VŠĮ Kauno klinikinė ligoninė
B3: PASIŪLYMAS
B4: Chirurginiai siūlai
A6: Data: | B6: 2018 05 10
A7: Nr.: | B7: 1
A8: Vieta: | B8: Vilnius
A10: Tiekėjo pavadinimas/Jeigu dalyvauja ūkio subjektų grupė, surašomi visi dalyvių pavadinimai/ | C10: UAB Medekspert LT
A11: Įmonės kodas /Jeigu dalyvauja ūkio subjektų grupė, surašomi visi dalyvių kodai/ | C11: 302454378
A12: PVM mokėtojo kodas/Jeigu dalyvauja ūkio subjektų grupė, surašomi visi dalyvių kodai/
A13: Banko pavadinimas, banko kodas, sąskaitos Nr. | C13: AB Swedbank, 7300, LT477300010119212113
A14: Tiekėjo adresas/Jeigu dalyvauja ūkio subjektų grupė, surašomi visi dalyvių adresai/
A15: Telefono numeris | C15: 8 5 2331949
A16: Fakso numeris | C16: 8 5 233 1949
A17: El. pašto adresas | C17: info@medekspert.lt
A18: Asmens, pasirašiusio pasiūlymą saugiu elektroniniu parašu, vardas, pavardė, pareigos | C18: Direktorė Neringa Stankūnienė
A19: Asmens, įgalioto pasirašyti sutartį, vardas, pavardė, pareigos | C19: Direktorė Neringa Stankūnienė
A23: 1. Šiuo pasiūlymu pažymime, kad sutinkame su visomis pirkimo sąlygomis, nustatytomis: 1) pirkimo skelbime, paskelbtame Viešųjų pirkimų įstatymo nustatyta tvarka; 2) pirkimo sąlygose ir kituose pirkimo dokumentuose (jų paaiškinimuose, papildymuose).
A25: Siūlomas pirkimo objektas visiškai atitinka pirkimo sąlygose nustatytus reikalavimus ir jo kaina yra:
A28: Nr. | B28: Pavadinimas | C28: Kiekis | D28: Mato vienetas | E28: Kaina be PVM | F28: Suma be PVM | G28: Siūlomos prekės pavadinimas ir gamintojas | H28: Tikslūs siūlomi siūlo ir adatos ilgiai
A29: 1. | B29: Besirezorbuojantys chirurginiai siūlai
A30: 1.1. | B30: Besirezorbuojantis, sintetinis, pintas poliglikolio rūgšties siūlas, dengtas polikapralaktono ir kalcio sterato danga. Pilna rezorbcija po 60-90±5% dienų. Po 2 savaičių siūlas išlaiko apie 70±5% pirminio stiprumo, po 3 savaičių apie 50±5% pirminio stiprumo | C30: 960 | D30: Vnt
A31: 1.1.1. | B31: Siūlo storis USP - 1
A32: 1.1.2. | B32: Siūlo ilgis 75-90 cm
A33: 1.1.3. | B33: Siūlo spalva - Dažytas
A34: 1.1.4. | B34: Adatos tipas - Apvali 1/2
A35: 1.1.5. | B35: Adatos ilgis 64-65 mm
A36: 1.2. | B36: Besirezorbuojantis, sintetinis, pintas poliglikolio rūgšties siūlas, dengtas polikapralaktono ir kalcio sterato danga. Pilna rezorbcija po 60-90±5% dienų. Po 2 savaičių siūlas išlaiko apie 70±5% pirminio stiprumo, po 3 savaičių apie 50±5% pirminio stiprumo | C36: 720 | D36: Vnt
A37: 1.2.1. | B37: Siūlo storis USP - 0
A38: 1.2.2. | B38: Siūlo ilgis 75-90 cm
A39: 1.2.3. | B39: Siūlo spalva - Dažytas
A40: 1.2.4. | B40: Adatos tipas - Apvali 1/2
A41: 1.2.5. | B41: Adatos ilgis 39-40 mm
A42: 1.3. | B42: Besirezorbuojantis, sintetinis, pintas poliglikolio rūgšties siūlas, dengtas polikapralaktono ir kalcio sterato danga. Pilna rezorbcija po 60-90±5% dienų. Po 2 savaičių siūlas išlaiko apie 70±5% pirminio stiprumo, po 3 savaičių apie 50±5% pirminio stiprumo | C42: 5000 | D42: Vnt
A43: 1.3.1. | B43: Siūlo storis USP - 1
A44: 1.3.2. | B44: Siūlo ilgis 75-90 cm
A45: 1.3.3. | B45: Siūlo spalva - Dažytas
A46: 1.3.4. | B46: Adatos tipas - Apvali 1/2
A47: 1.3.5. | B47: Adatos ilgis 47-48 mm
A48: 1.4. | B48: Besirezorbuojantis, sintetinis, pintas poliglikolio rūgšties siūlas, dengtas polikapralaktono ir kalcio sterato danga. Pilna rezorbcija po 60-90±5% dienų. Po 2 savaičių siūlas išlaiko apie 70±5% pirminio stiprumo, po 3 savaičių apie 50±5% pirminio stiprumo | C48: 11600 | D48: Vnt
A49: 1.4.1. | B49: Siūlo storis USP - 1
A50: 1.4.2. | B50: Siūlo ilgis 70-75 cm
A51: 1.4.3. | B51: Siūlo spalva - Dažytas
A52: 1.4.4. | B52: Adatos tipas - Apvali 1/2
A53: 1.4.5. | B53: Adatos ilgis 39-40 mm
A54: 1.4.6. | B54: Perkančioji organizacija prašo pateikti šios pirkimo dalies pavyzdį (ne mažiau keturis vienetus)
A55: 1.5. | B55: Besirezorbuojantis, sintetinis, pintas poliglikolio rūgšties siūlas, dengtas polikapralaktono ir kalcio sterato danga. Pilna rezorbcija po 60-90±5% dienų. Po 2 savaičių siūlas išlaiko apie 70±5% pirminio stiprumo, po 3 savaičių apie 50±5% pirminio stiprumo | C55: 1000 | D55: Vnt
A56: 1.5.1. | B56: Siūlo storis USP - 1
A57: 1.5.2. | B57: Siūlo ilgis 70-75 cm
A58: 1.5.3. | B58: Siūlo spalva - Dažytas
A59: 1.5.4. | B59: Adatos tipas - Apvali 1/2
A60: 1.5.5. | B60: Adatos ilgis 25-26 mm
A61: 1.6. | B61: Besirezorbuojantis, sintetinis, pintas poliglikolio rūgšties siūlas, dengtas polikapralaktono ir kalcio sterato danga. Pilna rezorbcija po 60-90±5% dienų. Po 2 savaičių siūlas išlaiko apie 70±5% pirminio stiprumo, po 3 savaičių apie 50±5% pirminio stiprumo | C61: 48 | D61: Vnt
A62: 1.6.1. | B62: Siūlo storis USP - 1
A63: 1.6.2. | B63: Siūlo ilgis 70-75 cm
A64: 1.6.3. | B64: Siūlo spalva - Dažytas
A65: 1.6.4. | B65: Adatos tipas - Apvali
A66: 1.6.5. | B66: Adatos ilgis 30-32 mm
A67: 1.7. | B67: Besirezorbuojantis, sintetinis, pintas poliglikolio rūgšties siūlas, dengtas polikapralaktono ir kalcio sterato danga. Pilna rezorbcija po 60-90±5% dienų. Po 2 savaičių siūlas išlaiko apie 70±5% pirminio stiprumo, po 3 savaičių apie 50±5% pirminio stiprumo | C67: 840 | D67: Vnt
A68: 1.7.1. | B68: Siūlo storis USP - 0
A69: 1.7.2. | B69: Siūlo ilgis 75-90 cm
A70: 1.7.3. | B70: Siūlo spalva - Dažytas
A71: 1.7.4. | B71: Adatos tipas - Apvali 1/2
A72: 1.7.5. | B72: Adatos ilgis 47-48 mm
A73: 1.8. | B73: Besirezorbuojantis, sintetinis, pintas poliglikolio rūgšties siūlas, dengtas polikapralaktono ir kalcio sterato danga. Pilna rezorbcija po 60-90±5% dienų. Po 2 savaičių siūlas išlaiko apie 70±5% pirminio stiprumo, po 3 savaičių apie 50±5% pirminio stiprumo | C73: 9100 | D73: Vnt
A74: 1.8.1. | B74: Siūlo storis USP - 0
A75: 1.8.2. | B75: Siūlo ilgis 70-75 cm
A76: 1.8.3. | B76: Siūlo spalva - Dažytas
A77: 1.8.4. | B77: Adatos tipas - Apvali 1/2
A78: 1.8.5. | B78: Adatos ilgis 37-38 mm
A79: 1.9. | B79: Besirezorbuojantis, sintetinis, pintas poliglikolio rūgšties siūlas, dengtas polikapralaktono ir kalcio sterato danga. Pilna rezorbcija po 60-90±5% dienų. Po 2 savaičių siūlas išlaiko apie 70±5% pirminio stiprumo, po 3 savaičių apie 50±5% pirminio stiprumo | C79: 240 | D79: Vnt
A80: 1.9.1. | B80: Siūlo storis USP - 0
A81: 1.9.2. | B81: Siūlo ilgis 70-75 cm
A82: 1.9.3. | B82: Siūlo spalva - Dažytas
A83: 1.9.4. | B83: Adatos tipas - Apvali 1/2
A84: 1.9.5. | B84: Adatos ilgis 30-31 mm
A85: 1.10. | B85: Besirezorbuojantis, sintetinis, pintas poliglikolio rūgšties siūlas, dengtas polikapralaktono ir kalcio sterato danga. Pilna rezorbcija po 60-90±5% dienų. Po 2 savaičių siūlas išlaiko apie 70±5% pirminio stiprumo, po 3 savaičių apie 50±5% pirminio stiprumo | C85: 180 | D85: Vnt
A86: 1.10.1. | B86: Siūlo storis USP - 6/0
A87: 1.10.2. | B87: Siūlo ilgis 70-75 cm
A88: 1.10.3. | B88: Siūlo spalva - Dažytas
A89: 1.10.4. | B89: Adatos tipas - Apvali 1/2
A90: 1.10.5. | B90: Adatos ilgis 20-21 mm
A91: 1.11. | B91: Besirezorbuojantis, sintetinis, pintas poliglikolio rūgšties siūlas, dengtas polikapralaktono ir kalcio sterato danga. Pilna rezorbcija po 60-90±5% dienų. Po 2 savaičių siūlas išlaiko apie 70±5% pirminio stiprumo, po 3 savaičių apie 50±5% pirminio stiprumo | C91: 240 | D91: Vnt
A92: 1.11.1. | B92: Siūlo storis USP - 5/0
A93: 1.11.2. | B93: Siūlo ilgis 70-75 cm
A94: 1.11.3. | B94: Siūlo spalva - Dažytas
A95: 1.11.4. | B95: Adatos tipas - Apvali 1/2
A96: 1.11.5. | B96: Adatos ilgis 19-20 mm
A97: 1.12. | B97: Besirezorbuojantis, sintetinis, pintas poliglikolio rūgšties siūlas, dengtas polikapralaktono ir kalcio sterato danga. Pilna rezorbcija po 60-90±5% dienų. Po 2 savaičių siūlas išlaiko apie 70±5% pirminio stiprumo, po 3 savaičių apie 50±5% pirminio stiprumo | C97: 60 | D97: Vnt
A98: 1.12.1. | B98: Siūlo storis USP - 4/0
A99: 1.12.2. | B99: Siūlo ilgis 70-75 cm
A100: 1.12.3. | B100: Siūlo spalva - Bespalvis
A101: 1.12.4. | B101: Adatos tipas - Tiesi pjaunanti
A102: 1.12.5. | B102: Adatos ilgis 60-61 mm
A103: 1.13. | B103: Besirezorbuojantis, sintetinis, pintas poliglikolio rūgšties siūlas, dengtas polikapralaktono ir kalcio sterato danga. Pilna rezorbcija po 60-90±5% dienų. Po 2 savaičių siūlas išlaiko apie 70±5% pirminio stiprumo, po 3 savaičių apie 50±5% pirminio stiprumo | C103: 2400 | D103: Vnt
A104: 1.13.1. | B104: Siūlo storis USP - 1
A105: 1.13.2. | B105: Siūlo ilgis 75-90 cm
A106: 1.13.3. | B106: Siūlo spalva - Dažytas
A107: 1.13.4. | B107: Adatos tipas - Pjaunanti 1/2
A108: 1.13.5. | B108: Adatos ilgis 38-40 mm
A109: 1.14. | B109: Besirezorbuojantis, sintetinis, pintas poliglikolio rūgšties siūlas, dengtas polikapralaktono ir kalcio sterato danga. Pilna rezorbcija po 60-90±5% dienų. Po 2 savaičių siūlas išlaiko apie 70±5% pirminio stiprumo, po 3 savaičių apie 50±5% pirminio stiprumo | C109: 1200 | D109: Vnt
A110: 1.14.1. | B110: Siūlo storis USP - 4/0
A111: 1.14.2. | B111: Siūlo ilgis 70-75 cm
A112: 1.14.3. | B112: Siūlo spalva - Dažytas
A113: 1.14.4. | B113: Adatos tipas - Apvali 1/2
A114: 1.14.5. | B114: Adatos ilgis 25-26 mm
A115: 1.15. | B115: Besirezorbuojantis, sintetinis, pintas poliglikolio rūgšties siūlas, dengtas polikapralaktono ir kalcio sterato danga. Pilna rezorbcija po 60-90±5% dienų. Po 2 savaičių siūlas išlaiko apie 70±5% pirminio stiprumo, po 3 savaičių apie 50±5% pirminio stiprumo | C115: 840 | D115: Vnt
A116: 1.15.1. | B116: Siūlo storis USP - 1
A117: 1.15.2. | B117: Siūlo ilgis 85-90 cm
A118: 1.15.3. | B118: Siūlo spalva - Dažytas
A119: 1.15.4. | B119: Adatos tipas - Pjaunanti 1/2
A120: 1.15.5. | B120: Adatos ilgis 46-48 mm
A121: 1.16. | B121: Besirezorbuojantis, sintetinis, pintas poliglikolio rūgšties siūlas, dengtas polikapralaktono ir kalcio sterato danga. Pilna rezorbcija po 60-90±5% dienų. Po 2 savaičių siūlas išlaiko apie 70±5% pirminio stiprumo, po 3 savaičių apie 50±5% pirminio stiprumo | C121: 1600 | D121: Vnt
A122: 1.16.1. | B122: Siūlo storis USP - 4/0
A123: 1.16.2. | B123: Siūlo ilgis 70-75 cm
A124: 1.16.3. | B124: Siūlo spalva - Dažytas
A125: 1.16.4. | B125: Adatos tipas - Apvali 1/2
A126: 1.16.5. | B126: Adatos ilgis 19-20 mm
A127: 1.16.6. | B127: Perkančioji organizacija prašo pateikti šios pirkimo dalies pavyzdį (ne mažiau keturis vienetus)
A128: 1.17. | B128: Besirezorbuojantis, sintetinis, pintas poliglikolio rūgšties siūlas, dengtas polikapralaktono ir kalcio sterato danga. Pilna rezorbcija po 60-90±5% dienų. Po 2 savaičių siūlas išlaiko apie 70±5% pirminio stiprumo, po 3 savaičių apie 50±5% pirminio stiprumo | C128: 1600 | D128: Vnt
A129: 1.17.1. | B129: Siūlo storis USP - 3/0
A130: 1.17.2. | B130: Siūlo ilgis 70-75 cm
A131: 1.17.3. | B131: Siūlo spalva - Dažytas
A132: 1.17.4. | B132: Adatos tipas - Apvali 1/2
A133: 1.17.5. | B133: Adatos ilgis 29-30 mm
A134: 1.18. | B134: Besirezorbuojantis, sintetinis, pintas poliglikolio rūgšties siūlas, dengtas polikapralaktono ir kalcio sterato danga. Pilna rezorbcija po 60-90±5% dienų. Po 2 savaičių siūlas išlaiko apie 70±5% pirminio stiprumo, po 3 savaičių apie 50±5% pirminio stiprumo | C134: 7600 | D134: Vnt
A135: 1.18.1. | B135: Siūlo storis USP - 3/0
A136: 1.18.2. | B136: Siūlo ilgis 70-75 cm
A137: 1.18.3. | B137: Siūlo spalva - Dažytas
A138: 1.18.4. | B138: Adatos tipas - Apvali 1/2
A139: 1.18.5. | B139: Adatos ilgis 25-26 mm
A140: 1.19. | B140: Besirezorbuojantis, sintetinis, pintas poliglikolio rūgšties siūlas, dengtas polikapralaktono ir kalcio sterato danga. Pilna rezorbcija po 60-90±5% dienų. Po 2 savaičių siūlas išlaiko apie 70±5% pirminio stiprumo, po 3 savaičių apie 50±5% pirminio stiprumo | C140: 2400 | D140: Vnt
A141: 1.19.1. | B141: Siūlo storis USP - 2/0
A142: 1.19.2. | B142: Siūlo ilgis 70-75 cm
A143: 1.19.3. | B143: Siūlo spalva - Dažytas
A144: 1.19.4. | B144: Adatos tipas - Apvali 1/2
A145: 1.19.5. | B145: Adatos ilgis 25-26 mm
A146: 1.20. | B146: Besirezorbuojantis, sintetinis, pintas poliglikolio rūgšties siūlas, dengtas polikapralaktono ir kalcio sterato danga. Pilna rezorbcija po 60-90±5% dienų. Po 2 savaičių siūlas išlaiko apie 70±5% pirminio stiprumo, po 3 savaičių apie 50±5% pirminio stiprumo | C146: 1400 | D146: Vnt
A147: 1.20.1. | B147: Siūlo storis USP - 2/0
A148: 1.20.2. | B148: Siūlo ilgis 70-75 cm
A149: 1.20.3. | B149: Siūlo spalva - Dažytas
A150: 1.20.4. | B150: Adatos tipas - Apvali 1/2
A151: 1.20.5. | B151: Adatos ilgis 29-30 mm
A152: 1.21. | B152: Besirezorbuojantis, sintetinis, pintas poliglikolio rūgšties siūlas, dengtas polikapralaktono ir kalcio sterato danga. Pilna rezorbcija po 60-90±5% dienų. Po 2 savaičių siūlas išlaiko apie 70±5% pirminio stiprumo, po 3 savaičių apie 50±5% pirminio stiprumo | C152: 3600 | D152: Vnt
A153: 1.21.1. | B153: Siūlo storis USP - 1
A154: 1.21.2. | B154: Siūlo ilgis 2x70-75 cm
A155: 1.21.3. | B155: Siūlo spalva - Dažytas
A156: 1.21.4. | B156: Adatos tipas -
A157: 1.21.5. | B157: Adatos ilgis
A158: 1.22. | B158: Besirezorbuojantis, sintetinis, pintas poliglikolio rūgšties siūlas, dengtas polikapralaktono ir kalcio sterato danga. Pilna rezorbcija po 60-90±5% dienų. Po 2 savaičių siūlas išlaiko apie 70±5% pirminio stiprumo, po 3 savaičių apie 50±5% pirminio stiprumo | C158: 1500 | D158: Vnt
A159: 1.22.1. | B159: Siūlo storis USP - 0
A160: 1.22.2. | B160: Siūlo ilgis 2x70-75 cm
A161: 1.22.3. | B161: Siūlo spalva - Dažytas
A162: 1.22.4. | B162: Adatos tipas -
A163: 1.22.5. | B163: Adatos ilgis
A164: 1.23. | B164: Besirezorbuojantis, sintetinis, pintas poliglikolio rūgšties siūlas, dengtas polikapralaktono ir kalcio sterato danga. Pilna rezorbcija po 60-90±5% dienų. Po 2 savaičių siūlas išlaiko apie 70±5% pirminio stiprumo, po 3 savaičių apie 50±5% pirminio stiprumo | C164: 1900 | D164: Vnt
A165: 1.23.1. | B165: Siūlo storis USP - 1
A166: 1.23.2. | B166: Siūlo ilgis 5x70-75 cm
A167: 1.23.3. | B167: Siūlo spalva - Dažytas
A168: 1.23.4. | B168: Adatos tipas -
A169: 1.23.5. | B169: Adatos ilgis
A170: 1.24. | B170: Besirezorbuojantis, sintetinis, pintas poliglikolio rūgšties siūlas, dengtas polikapralaktono ir kalcio sterato danga. Pilna rezorbcija po 60-90±5% dienų. Po 2 savaičių siūlas išlaiko apie 70±5% pirminio stiprumo, po 3 savaičių apie 50±5% pirminio stiprumo | C170: 800 | D170: Vnt
A171: 1.24.1. | B171: Siūlo storis USP - 0
A172: 1.24.2. | B172: Siūlo ilgis 5x70-75 cm
A173: 1.24.3. | B173: Siūlo spalva - Dažytas
A174: 1.24.4. | B174: Adatos tipas -
A175: 1.24.5. | B175: Adatos ilgis
A176: 1.25. | B176: Besirezorbuojantis, sintetinis, pintas poliglikolio rūgšties siūlas, dengtas polikapralaktono ir kalcio sterato danga. Pilna rezorbcija po 60-90±5% dienų. Po 2 savaičių siūlas išlaiko apie 70±5% pirminio stiprumo, po 3 savaičių apie 50±5% pirminio stiprumo | C176: 1800 | D176: Vnt
A177: 1.25.1. | B177: Siūlo storis USP - 3/0
A178: 1.25.2. | B178: Siūlo ilgis 2x70-75 cm
A179: 1.25.3. | B179: Siūlo spalva - Dažytas
A180: 1.25.4. | B180: Adatos tipas -
A181: 1.25.5. | B181: Adatos ilgis
A182: 1.26. | B182: Besirezorbuojantis, sintetinis, pintas poliglikolio rūgšties siūlas, dengtas polikapralaktono ir kalcio sterato danga. Pilna rezorbcija po 60-90±5% dienų. Po 2 savaičių siūlas išlaiko apie 70±5% pirminio stiprumo, po 3 savaičių apie 50±5% pirminio stiprumo | C182: 1600 | D182: Vnt
A183: 1.26.1. | B183: Siūlo storis USP - 3/0
A184: 1.26.2. | B184: Siūlo ilgis 5x70-75 cm
A185: 1.26.3. | B185: Siūlo spalva - Dažytas
A186: 1.26.4. | B186: Adatos tipas -
A187: 1.26.5. | B187: Adatos ilgis
A188: 1.27. | B188: Besirezorbuojantis, sintetinis, pintas poliglikolio rūgšties siūlas, dengtas polikapralaktono ir kalcio sterato danga. Pilna rezorbcija po 60-90±5% dienų. Po 2 savaičių siūlas išlaiko apie 70±5% pirminio stiprumo, po 3 savaičių apie 50±5% pirminio stiprumo | C188: 5600 | D188: Vnt
A189: 1.27.1. | B189: Siūlo storis USP - 1
A190: 1.27.2. | B190: Siūlo ilgis 75-90 cm
A191: 1.27.3. | B191: Siūlo spalva - Dažytas
A192: 1.27.4. | B192: Adatos tipas - Pjaunanti 1/2
A193: 1.27.5. | B193: Adatos ilgis 39-40 mm
A194: 1.28. | B194: Besirezorbuojantis, sintetinis, pintas poliglikolio rūgšties siūlas, dengtas polikapralaktono ir kalcio sterato danga. Pilna rezorbcija po 60-90±5% dienų. Po 2 savaičių siūlas išlaiko apie 70±5% pirminio stiprumo, po 3 savaičių apie 50±5% pirminio stiprumo | C194: 2800 | D194: Vnt
A195: 1.28.1. | B195: Siūlo storis USP - 1
A196: 1.28.2. | B196: Siūlo ilgis 70-75 cm
A197: 1.28.3. | B197: Siūlo spalva - Dažytas
A198: 1.28.4. | B198: Adatos tipas - Pjaunanti 1/2
A199: 1.28.5. | B199: Adatos ilgis 47-48 mm
A200: 1.29. | B200: Besirezorbuojantis, sintetinis, pintas poliglikolio rūgšties siūlas, dengtas polikapralaktono ir kalcio sterato danga. Pilna rezorbcija po 60-90±5% dienų. Po 2 savaičių siūlas išlaiko apie 70±5% pirminio stiprumo, po 3 savaičių apie 50±5% pirminio stiprumo | C200: 1200 | D200: Vnt
A201: 1.29.1. | B201: Siūlo storis USP - 1
A202: 1.29.2. | B202: Siūlo ilgis 70-75 cm
A203: 1.29.3. | B203: Siūlo spalva - Dažytas
A204: 1.29.4. | B204: Adatos tipas - Pjaunanti 1/2
A205: 1.29.5. | B205: Adatos ilgis 36-37 mm
A206: 1.30. | B206: Besirezorbuojantis, sintetinis, pintas poliglikolio rūgšties siūlas, dengtas polikapralaktono ir kalcio sterato danga. Pilna rezorbcija po 60-90±5% dienų. Po 2 savaičių siūlas išlaiko apie 70±5% pirminio stiprumo, po 3 savaičių apie 50±5% pirminio stiprumo | C206: 240 | D206: Vnt
A207: 1.30.1. | B207: Siūlo storis USP - 6/0
A208: 1.30.2. | B208: Siūlo ilgis 70-75 cm
A209: 1.30.3. | B209: Siūlo spalva - Bespalvis
... 928 more rows

Sheet Subtiekėjai
A2: Sutarties vykdymui numatome pasitelkti šiuos subtiekėjus / subteikėjus / subrangovus(įrašyti visus subtiekėjus / subteikėjus / subrangovus nepriklausomai nuo tiekiamų prekių/ teikiamų paslaugų/ atliekamų darbų vertės):
A4: Subtiekėjo / subteikėjo / subrangovo(-ų) pavadinimas (-ai) | C4: Adresas | F4: Trumpas aprašymas | I4: Procentas nuo pasiūlymo kainos be PVM
A11: Jeigu pirkimo dokumentų 18 punkte numatytas subtiekimo / subteikimo / subrangos apribojimas: Mes patvirtiname, kad subtiekėjams / subteikėjams / subrangovams (tiekėjams, kuriuos pasamdysime dalies sutartyje numatytų prekių tiekimui /paslaugų teikimui / darbų atlikimui) perduodamų tiekti prekių / teikti paslaugų/ atlikti darbų dalis neviršysproc. pasiūlymo kainos be PVM.
A13: Mes patvirtiname, kad esame / nesame (nereikalingą išbraukti) laikomi asocijuotais (susijusiais) su Perkančiąja organizacija pagal Lietuvos Respublikoje galiojančių teisės aktų (Lietuvos Respublikos pelno mokesčio, Lietuvos Respublikos pridėtinės vertės mokesčio ir Lietuvos Respublikos gyventojų pajamų mokesčio įstatymų) nuostatas.
A15: Kartu su pasiūlymu pateikiami šie dokumentai:
A17: Eil.Nr. | B17: "Pateiktų skaitmeninių dokumentų (ar jų kopijų) pavadinimas (pasiūlymą sudarančių konfidencialių dokumentų pavadinimai pažymėti prierašu KONFIDENCIALU)" | H17: Prisegtos bylos (failo) pavadinimas
A25: Pasiūlymo galiojimo užtikrinimui pateikiame :
A27: (Nurodyti užtikrinimo būdą, dydį, dokumentus)
A29: Pasiūlymas galioja iki termino, nustatyto pirkimo dokumentuose.Pasiūlymo neatskiriama dalis yra (rašoma, jeigu buvo reikalauta prie pasiūlymo pridėti atitinkamą dokumentą)
A33: Tiekėjo arba jo įgalioto asmens pareigų pavadinimas
A36: Pasirašančio asmens vardas ir pavardė
A39: **kadangi visas pasiūlymas pasirašomas saugiu elektroniniu parašu, šio dokumento atskirai pasirašyti neprivaloma.
A100: 1620-2
